bitfinex-derivatives/quotes_ETHF0:USTF0_20260213
["timestamp","ask_amount","ask_price","bid_price","bid_amount"]
[1770944112283,0.57365188,1935.7,1934.7,0.00545625]
[1770944113288,0.56697808,1935.5,1934.3,0.53849492]
[1770944114189,0.56697808,1935.5,1934.3,0.54337394]
[1770944114687,0.56697808,1935.5,1934.3,5.44437394]
[1770944114883,0.56697808,1935.5,1934.4,0.53849492]
[1770944117281,0.56697808,1935.5,1934.4,5.43449492]
[1770944117486,0.56697808,1935.5,1934.5,0.53849492]
[1770944120493,0.56697808,1935.3,1934.3,0.54337394]
[1770944122889,0.25861,1935.0,1934.0,0.53849492]
[1770944123095,0.56697808,1934.9,1933.9,0.53849492]
[1770944123893,0.56697808,1934.7,1933.5,0.53849492]
[1770944124190,0.56697808,1934.7,1933.5,0.54235238]
[1770944124885,0.56697808,1934.5,1933.5,0.54235238]
[1770944125992,0.56697808,1934.7,1933.6,0.53849492]
[1770944128696,0.56697808,1934.7,1933.8,0.53849492]
[1770944129697,0.56697808,1934.7,1933.9,0.53849492]
[1770944134500,0.56949868,1935.1,1933.9,0.53849492]
[1770944136994,0.56949868,1935.1,1934.1,0.57682932]
[1770944137202,0.56949868,1935.3,1934.3,0.57682932]
[1770944138495,0.56949868,1935.3,1934.5,0.57682932]
[1770944141905,0.0066738,1935.7,1934.7,0.57682932]
[1770944142404,0.57617248,1935.7,1934.8,0.57682932]
[1770944143403,0.57617248,1935.7,1934.6,0.57682932]
[1770944144403,0.56949868,1935.5,1934.6,0.57682932]
[1770944147298,0.0066738,1935.7,1934.6,0.57682932]
[1770944147504,0.56949868,1935.6,1934.6,0.57682932]
[1770944153497,0.0066738,1935.7,1934.8,0.57682932]
[1770944153695,0.0066738,1935.7,1935.0,0.57682932]
[1770944153898,0.0066738,1935.7,1935.0,0.58313784]
[1770944157309,0.56949868,1936.2,1935.2,0.57682932]
[1770944158310,0.57604318,1936.2,1935.2,0.57682932]
[1770944160916,0.0065445,1936.2,1935.4,0.57584951]
[1770944161621,0.0065445,1936.2,1935.6,0.57584951]
[1770944161622,0.57011393,1936.2,1935.6,0.57584951]
[1770944163520,0.0065445,1936.2,1935.6,0.57584951]
[1770944163920,0.57011393,1936.2,1935.6,0.57584951]
[1770944164623,0.0065445,1936.2,1935.6,0.57584951]
[1770944166522,0.57011393,1936.2,1935.6,0.57584951]
[1770944168127,0.0065445,1936.2,1935.6,0.57584951]
[1770944168727,0.56356943,1936.9,1935.6,0.57584951]
[1770944168928,0.56356943,1936.9,1935.8,0.57584951]
[1770944169823,0.56762946,1936.9,1935.8,0.57584951]
[1770944171326,0.56356943,1936.5,1935.3,0.57584951]
[1770944172224,0.25843,1936.4,1935.3,0.57584951]
[1770944172425,0.56356943,1936.1,1935.1,0.57584951]
[1770944180727,0.56356943,1935.9,1935.0,0.00630852]
[1770944181035,0.56356943,1935.9,1935.0,0.58215803]
[1770944187137,0.56356943,1935.7,1935.0,0.00630852]
[1770944187839,0.56356943,1935.7,1935.0,0.58215803]
[1770944193644,0.56356943,1935.7,1935.0,0.00630852]
[1770944193833,0.56356943,1935.7,1934.7,0.5469057]
[1770944194439,0.54776709,1935.5,1934.7,0.5469057]
[1770944194940,0.55368131,1935.5,1934.7,0.5530696]
[1770944195843,0.00591422,1935.5,1934.7,0.5530696]
[1770944197246,0.55368131,1935.5,1934.7,0.5530696]
[1770944198743,0.00591422,1935.5,1934.7,0.5530696]
[1770944199543,0.55368131,1935.5,1934.7,0.5530696]
[1770944200340,0.00591422,1935.5,1934.7,0.5530696]
[1770944200843,0.00591422,1935.5,1934.7,8.27771312]
[1770944201236,0.00591422,1935.5,1934.8,0.5469057]
[1770944201948,0.54776709,1935.8,1934.8,0.5469057]
[1770944202447,0.54776709,1935.8,1934.9,0.5469057]
[1770944203044,0.55443685,1935.8,1934.9,0.5469057]
[1770944207649,4.64350194,1935.7,1934.9,0.5469057]
[1770944207949,0.54776709,1935.6,1934.9,0.5469057]
[1770944210349,0.55443685,1935.8,1934.9,0.5469057]
[1770944214445,0.54776709,1935.6,1934.9,0.5469057]
[1770944214651,0.54776709,1935.6,1935.0,0.5469057]
[1770944218853,0.54776709,1935.6,1934.9,0.5469057]
[1770944220861,0.54776709,1935.6,1935.1,0.55402537]
[1770944221358,0.56107413,1935.7,1935.1,0.55402537]
[1770944223154,0.00666976,1935.8,1935.1,0.55402537]
[1770944223755,0.00666976,1935.8,1935.1,8.27866889]
[1770944223956,0.56107413,1936.1,1935.2,0.55402537]
[1770944224155,45.34737734,1936.3,1935.4,0.55402537]
[1770944224156,0.56107413,1936.3,1935.4,0.55402537]
[1770944224757,0.56107413,1936.3,1935.5,0.55402537]
[1770944224955,0.56748575,1936.3,1935.5,0.55402537]
[1770944226756,0.56748575,1936.3,1935.5,5.46802537]
[1770944226957,0.56748575,1936.3,1935.5,4.914]
[1770944227157,0.56107413,1936.1,1935.3,5.47102537]
[1770944227359,0.56107413,1936.1,1935.4,0.55402537]
[1770944230764,0.56107413,1936.1,1935.3,4.911]
[1770944230969,0.56107413,1935.9,1935.0,0.55402537]
[1770944241170,3.05593551,1936.0,1935.0,0.55402537]
[1770944241171,0.56107413,1935.7,1935.0,0.55402537]
[1770944246475,0.56107413,1935.4,1934.9,0.55402537]
[1770944246674,0.56107413,1935.4,1935.0,0.55402537]
[1770944248583,3.05593551,1935.9,1934.7,0.56018927]
[1770944248584,0.56107413,1935.2,1934.7,0.56018927]
[1770944250280,0.56107413,1935.4,1934.7,0.56018927]
[1770944251482,0.56107413,1935.4,1934.8,0.58258483]
[1770944252582,0.57055953,1935.6,1934.8,0.58258483]
[1770944252983,0.54053141,1935.7,1935.0,0.5790457]
[1770944255385,0.54053141,1935.4,1935.0,5.5220457]
[1770944255583,0.54053141,1935.4,1935.1,0.5790457]
[1770944257884,0.54053141,1935.6,1935.1,0.5790457]
[1770944259987,0.54053141,1935.6,1935.0,0.5790457]
[1770944260379,0.54053141,1935.7,1935.0,0.5790457]
[1770944268291,0.54053141,1935.9,1935.0,0.5790457]
[1770944268490,5.22695253,1935.8,1935.0,0.5790457]
[1770944268693,0.54053141,1935.8,1935.0,0.5790457]
[1770944274297,0.54053141,1936.1,1935.1,0.5790457]
[1770944274494,0.54053141,1935.9,1935.2,0.5790457]
[1770944278100,0.54053141,1935.9,1935.0,5.5570457]
[1770944278294,0.54053141,1935.9,1935.1,0.5790457]
[1770944279596,0.54694303,1936.3,1935.3,0.5790457]
[1770944279802,0.54694303,1936.3,1935.5,0.5790457]
[1770944279993,0.54694303,1936.3,1935.7,0.5790457]
[1770944280596,0.00641162,1936.3,1935.7,0.5790457]
[1770944280797,0.60182535,1936.3,1935.7,0.5790457]
[1770944281903,0.00641162,1936.3,1935.7,0.5790457]
[1770944282205,0.59541373,1936.8,1935.8,0.54572696]
[1770944282800,0.59541373,1936.6,1935.6,0.54572696]
[1770944283099,0.60097459,1936.6,1935.7,4.997]
[1770944283603,0.60097459,1936.6,1935.8,0.54572696]
[1770944286901,0.60097459,1936.6,1935.7,4.997]
[1770944287100,0.60097459,1936.6,1935.7,5.54272696]
[1770944287504,0.60097459,1936.6,1935.8,0.54572696]
[1770944288702,0.60097459,1936.6,1935.6,0.54572696]
[1770944288900,0.60097459,1936.6,1935.5,0.54572696]
[1770944289804,0.59541373,1936.4,1935.3,0.54572696]
[1770944291708,0.59541373,1936.2,1935.3,0.54572696]
[1770944291911,0.59541373,1936.2,1935.2,0.54572696]
[1770944292102,0.59541373,1936.1,1935.2,0.54572696]
[1770944292304,0.59541373,1936.0,1935.0,0.54572696]
[1770944295308,0.59541373,1935.8,1934.8,0.54572696]
[1770944295609,0.59541373,1935.6,1934.7,0.0061639]
[1770944295809,0.59541373,1935.4,1934.7,0.0061639]
[1770944296412,0.59541373,1935.4,1934.7,0.55189086]
[1770944297304,0.59541373,1935.4,1934.7,0.0061639]
[1770944300305,0.59541373,1935.4,1934.7,0.55189086]
[1770944300504,0.59541373,1935.6,1934.7,0.55189086]
[1770944303213,0.59541373,1935.8,1934.7,0.55189086]
[1770944303408,0.59541373,1936.0,1934.8,0.54572696]
[1770944306517,0.59541373,1936.2,1935.0,0.54572696]
[1770944306714,0.59541373,1936.2,1935.1,0.54572696]
[1770944315322,0.59187279,1936.0,1935.1,0.54572696]
[1770944315628,0.59187279,1935.8,1934.9,5.53165166]
[1770944315927,0.59187279,1935.8,1934.8,0.57165166]
[1770944317829,0.59187279,1935.6,1934.8,0.57165166]
[1770944318325,0.59187279,1935.6,1934.7,0.57781556]
[1770944322735,0.59187279,1935.4,1934.7,0.57781556]
[1770944334048,0.59187279,1935.4,1934.7,0.0061639]
[1770944335046,0.59187279,1935.4,1934.7,0.57781556]
[1770944336940,0.59187279,1935.3,1934.7,0.57781556]
[1770944338745,0.59187279,1935.2,1934.7,0.57781556]
[1770944338948,0.59675722,1935.2,1934.7,0.57781556]
[1770944341147,0.59675722,1935.2,1934.7,0.0061639]
[1770944341342,0.59675722,1935.2,1934.4,0.57178847]
[1770944342350,0.59675722,1935.2,1934.4,0.57650353]
[1770944345253,0.58726438,1935.0,1934.4,0.00471506]
[1770944346155,0.58726438,1935.0,1934.4,0.57650353]
[1770944346956,0.58726438,1935.1,1934.4,0.57650353]
[1770944351463,0.00488443,1935.2,1934.4,0.57650353]
[1770944351654,0.59214881,1935.2,1934.4,0.57650353]
[1770944354166,4.67500886,1935.1,1934.4,0.57650353]
[1770944354366,0.58726438,1935.0,1934.4,0.57650353]
[1770944359070,3.06251065,1935.2,1934.4,0.57650353]
[1770944359071,0.59214881,1935.2,1934.4,0.57650353]
[1770944362874,0.59214881,1935.2,1934.5,0.57178847]
[1770944363771,0.58726438,1935.0,1934.4,0.00471506]
[1770944364076,0.58726438,1935.0,1934.4,0.57650353]
[1770944390308,0.58755622,1934.8,1934.2,0.58983596]
[1770944390703,0.58755622,1934.6,1934.0,0.58983596]
[1770944390905,4.68830668,1934.5,1933.8,0.58983596]
[1770944391105,5.27536283,1934.4,1933.8,0.58983596]
[1770944391307,0.58755622,1934.3,1933.8,0.59610664]
[1770944391907,0.58755622,1934.3,1933.8,0.00627068]
[1770944392811,0.58755622,1934.1,1933.6,0.57849175]
[1770944394008,0.58755622,1934.1,1933.6,0.58356221]
[1770944394911,0.58755622,1934.1,1933.6,0.00507046]
[1770944395306,0.58755622,1934.1,1933.2,0.58983596]
[1770944396408,0.58755622,1934.1,1933.2,0.59542727]
[1770944397212,0.58755622,1933.7,1933.2,0.00559131]
[1770944397407,0.59185674,1933.7,1933.2,0.59542727]
[1770944400405,0.00430052,1933.7,1933.2,0.59542727]
[1770944401008,0.57077142,1934.2,1933.2,0.59542727]
[1770944401306,0.57077142,1934.2,1933.3,0.55037523]
[1770944401912,0.57550195,1934.2,1933.3,0.55037523]
[1770944404417,0.00473053,1934.2,1933.3,0.55037523]
[1770944404712,0.00473053,1934.2,1933.6,0.55037523]
[1770944404912,0.57077142,1934.5,1933.6,0.55037523]
[1770944405112,0.57077142,1934.9,1933.6,0.55037523]
[1770944405721,0.57077142,1934.6,1933.6,0.55037523]
[1770944406020,0.57692837,1934.6,1933.6,0.55037523]
[1770944407416,0.00615695,1934.6,1933.6,2.09224249]
[1770944407621,0.00615695,1934.6,1933.7,0.55037523]
[1770944407922,0.57692837,1934.6,1933.7,0.55037523]
[1770944408620,0.57077142,1934.2,1933.2,0.55596654]
[1770944408824,0.57077142,1933.9,1933.2,0.55596654]
[1770944410326,0.57077142,1934.2,1933.2,0.55596654]
[1770944418537,0.57692837,1934.6,1933.3,0.55037523]
[1770944418736,0.57692837,1934.6,1933.5,0.55037523]
[1770944419037,0.00615695,1934.6,1933.5,8.27501875]
[1770944419238,0.00615695,1934.6,1933.8,0.55037523]
[1770944419438,0.00615695,1934.6,1933.8,41.35037523]
[1770944419734,0.00615695,1934.6,1933.9,0.55037523]
[1770944419939,0.57077142,1935.1,1933.9,0.55037523]
[1770944420142,0.57077142,1935.1,1934.0,0.55037523]
[1770944420337,0.57077142,1935.1,1934.2,0.55037523]
[1770944420536,0.57077142,1935.1,1934.0,5.43337523]
[1770944420939,0.57077142,1935.1,1933.8,0.55037523]
[1770944420940,0.57077142,1934.9,1933.8,0.55037523]
[1770944423847,0.57077142,1934.7,1933.7,0.55037523]
[1770944424047,0.57077142,1934.5,1933.5,0.55037523]
[1770944424546,0.57077142,1934.3,1933.3,0.55037523]
[1770944426740,0.57077142,1934.3,1933.2,0.55596654]
[1770944426945,0.57077142,1934.1,1933.2,0.55596654]
[1770944428147,0.57077142,1934.3,1933.2,0.55596654]
[1770944428544,0.25867,1934.6,1933.2,0.55596654]
[1770944428740,45.34737734,1934.9,1933.4,0.55037523]
[1770944428741,0.57077142,1934.5,1933.4,0.55037523]
[1770944429144,0.57077142,1934.8,1933.5,0.55037523]
[1770944429345,0.57077142,1934.8,1933.6,0.55037523]
[1770944430941,0.57077142,1934.8,1933.7,0.58642425]
[1770944431145,0.57077142,1934.8,1933.9,0.58642425]
[1770944431448,0.55222379,1935.0,1933.9,0.58642425]
[1770944432050,0.00367625,1935.1,1934.1,0.58642425]
[1770944433445,0.00367625,1935.1,1934.1,0.84514425]
[1770944433642,0.00367625,1935.1,1934.2,0.55938362]
[1770944433848,0.00367625,1935.1,1934.2,7.72464352]
[1770944434051,0.00367625,1935.1,1934.3,0.55938362]
[1770944434253,0.00367625,1935.1,1934.5,0.55938362]
[1770944437242,0.56876503,1935.1,1934.5,0.55938362]
[1770944439649,0.56876503,1935.1,1934.4,0.55938362]
[1770944440051,0.56508878,1935.6,1934.4,0.55938362]
[1770944440857,0.56508878,1935.6,1934.6,0.55938362]
[1770944441154,0.56971216,1935.6,1934.6,0.56344024]
[1770944444452,0.56971216,1935.6,1934.7,0.55938362]
[1770944448065,0.56508878,1935.4,1934.6,0.00405662]
[1770944448562,0.56508878,1935.3,1934.3,0.55938362]
[1770944448760,0.56508878,1935.1,1933.6,0.55938362]
[1770944448961,0.56508878,1935.1,1933.8,0.55938362]
[1770944449666,0.56508878,1934.9,1933.8,0.56599523]
[1770944452065,0.56508878,1934.9,1933.9,0.55938362]
[1770944455164,0.56508878,1934.9,1934.0,0.55938362]
[1770944455369,0.56508878,1935.3,1934.0,0.55938362]
[1770944456471,0.56508878,1935.1,1934.0,0.55938362]
[1770944457769,0.56508878,1934.9,1934.0,0.55938362]
[1770944462869,0.58250066,1935.2,1934.0,0.55938362]
[1770944463074,0.58250066,1935.4,1934.3,0.59095912]
[1770944463377,0.58250066,1935.4,1934.5,0.59095912]
[1770944463575,0.58250066,1935.4,1934.6,0.59095912]
[1770944464073,0.58712404,1935.6,1934.6,0.59095912]
[1770944465273,0.58250066,1935.4,1934.4,0.59095912]
[1770944465468,0.58250066,1935.4,1934.5,0.59095912]
[1770944467270,0.58712404,1935.6,1934.7,0.59095912]
[1770944467775,0.00462338,1935.6,1934.7,0.59095912]
[1770944468274,0.00462338,1935.6,1934.7,0.84960912]
[1770944468474,0.00462338,1935.6,1934.8,0.59095912]
[1770944472375,0.58712404,1935.6,1934.8,0.59095912]
[1770944472567,0.00462338,1935.6,1934.8,0.59095912]
[1770944473277,0.58712404,1935.6,1934.8,0.59095912]
[1770944474071,0.58712404,1935.6,1934.7,5.46595912]
[1770944474471,0.58712404,1935.6,1934.5,0.59095912]
[1770944479777,0.58712404,1935.6,1934.4,0.59095912]
[1770944479778,0.58250066,1935.4,1934.4,0.59095912]
[1770944480083,0.58250066,1935.4,1934.3,0.59095912]
[1770944480575,0.58250066,1935.2,1934.2,4.872]
[1770944480782,0.58250066,1935.2,1934.1,0.59095912]
[1770944480987,0.58250066,1935.0,1933.9,0.59095912]
[1770944482878,0.58250066,1935.0,1934.1,0.59095912]
[1770944489396,0.58250066,1935.0,1933.9,0.59095912]
[1770944489397,0.58250066,1934.9,1933.9,0.59095912]
[1770944490298,0.58250066,1934.9,1933.8,0.00661161]
[1770944490602,0.55883596,1934.7,1933.8,0.56048065]
[1770944493407,0.55883596,1934.7,1933.8,0.56048065]
[1770944493603,0.57898031,1935.1,1933.9,0.56233077]
[1770944495107,0.57898031,1935.3,1934.2,0.56233077]
[1770944495308,0.57898031,1935.3,1934.4,0.56233077]
[1770944497514,0.57898031,1935.3,1934.3,4.854]
[1770944497716,0.57898031,1935.3,1934.3,5.41633077]
[1770944498310,0.57898031,1935.3,1934.4,0.56233077]
[1770944504208,0.57898031,1935.1,1934.4,0.56233077]
[1770944504415,0.57898031,1935.1,1934.3,4.854]
[1770944504718,0.57898031,1935.1,1934.3,5.41633077]
[1770944505014,0.57898031,1935.1,1934.2,0.56233077]
[1770944506817,0.57898031,1934.9,1934.2,0.56233077]
[1770944509212,0.57898031,1934.7,1934.1,0.56233077]
[1770944509418,0.57898031,1934.7,1933.9,0.56233077]
[1770944510324,0.57898031,1934.8,1933.9,0.56233077]
[1770944512319,0.57898031,1934.9,1933.9,0.56233077]
[1770944514226,0.57898031,1934.9,1934.0,0.56233077]
[1770944515123,0.57898031,1935.1,1934.0,0.56233077]
[1770944515922,0.57898031,1935.1,1934.1,0.56233077]
[1770944519425,0.57898031,1935.3,1934.3,0.56233077]
[1770944519731,0.57898031,1935.3,1934.5,0.56233077]
[1770944525821,0.57898031,1935.3,1934.6,0.59192985]
[1770944528328,0.56474878,1935.6,1934.6,0.59192985]
[1770944528629,0.56474878,1935.6,1934.7,0.59192985]
[1770944529832,0.56474878,1935.6,1934.8,0.59192985]
[1770944530022,0.00462338,1935.6,1934.8,0.59192985]
[1770944530825,0.56474878,1935.6,1934.8,0.59192985]
[1770944531923,0.00462338,1935.6,1934.8,0.59192985]
[1770944532125,0.5601254,1936.0,1935.0,0.59192985]
[1770944532330,0.5601254,1936.0,1935.2,0.59192985]
[1770944533133,0.566278,1936.0,1935.2,0.59600744]
[1770944536135,0.0061526,1936.0,1935.2,0.59600744]
[1770944536932,0.0061526,1936.0,1935.4,0.59192985]
[1770944537132,0.5601254,1936.6,1935.4,0.59192985]
[1770944538237,0.56449641,1936.6,1935.4,0.59192985]
[1770944539439,0.56449641,1936.6,1935.5,4.886]
[1770944539640,0.56449641,1936.6,1935.6,0.59192985]
[1770944540135,0.00437101,1936.6,1935.6,0.59192985]
[1770944540841,0.56449641,1936.6,1935.6,0.59192985]
[1770944541438,0.56449641,1936.6,1935.8,0.59192985]
[1770944542344,0.56449641,1936.6,1935.7,0.59192985]
[1770944544434,0.56449641,1936.6,1935.6,0.59192985]
[1770944544435,0.5601254,1936.4,1935.6,0.59192985]
[1770944544645,0.5601254,1936.4,1935.3,0.59192985]
[1770944548639,0.5601254,1936.2,1935.2,5.47700744]
[1770944549039,0.5601254,1936.2,1935.3,0.59192985]
[1770944549441,0.5601254,1936.2,1935.2,0.59600744]
[1770944555550,0.57759109,1936.0,1935.2,0.59600744]
[1770944564450,0.57759109,1935.8,1935.2,0.00407759]
[1770944564850,0.57759109,1935.6,1935.2,0.00407759]
[1770944565057,0.57759109,1935.6,1934.7,0.5709027]
[1770944565254,0.57759109,1935.4,1934.7,0.5709027]
[1770944565856,0.57759109,1935.4,1934.6,0.5709027]
[1770944566058,0.57759109,1935.4,1934.6,0.00577894]
[1770944566550,0.57759109,1935.2,1934.3,0.5709027]
[1770944566754,0.57759109,1935.2,1934.2,5.4349027]
[1770944566957,0.57759109,1935.0,1934.2,5.4349027]
[1770944567858,0.58127549,1935.0,1934.2,0.00498023]
[1770944568657,0.57759109,1934.8,1933.8,0.5709027]
[1770944569657,0.57759109,1934.8,1933.8,0.57536603]
[1770944570054,0.57759109,1934.8,1933.9,0.5709027]
[1770944570258,0.58127549,1935.0,1933.9,0.5709027]
[1770944570960,0.57759109,1935.5,1934.5,0.5709027]
[1770944571863,0.57759109,1935.9,1934.8,0.5709027]
[1770944572157,0.58221979,1935.9,1934.8,0.5709027]
[1770944574359,0.0046287,1935.9,1935.1,0.5709027]
[1770944574562,0.58221979,1935.9,1935.1,0.5709027]
[1770944576373,0.57759109,1936.6,1935.4,0.5709027]
[1770944577466,0.58298319,1936.6,1935.7,0.5709027]
[1770944577672,0.0053921,1936.6,1935.8,0.5709027]
[1770944578474,0.58298319,1936.6,1935.8,0.5709027]
[1770944580174,0.57759109,1937.2,1936.4,0.5709027]
[1770944580576,0.57759109,1937.2,1936.5,0.55294677]
[1770944581178,0.58381084,1937.2,1936.5,0.55294677]
[1770944581976,0.00621975,1937.2,1936.5,0.55294677]
[1770944582175,0.54532059,1937.2,1936.5,0.55294677]
[1770944583179,0.00621975,1937.2,1936.5,0.55294677]
[1770944584379,0.54532059,1937.2,1936.5,0.55294677]
[1770944584581,0.54532059,1937.2,1936.2,0.55294677]
[1770944584889,0.54532059,1937.2,1936.4,0.55294677]
[1770944590283,0.54532059,1937.2,1936.2,0.55294677]
[1770944591690,0.54532059,1937.2,1936.4,0.55294677]
[1770944594790,0.54532059,1937.2,1936.5,4.877]
[1770944595187,0.54532059,1937.2,1936.5,5.42994677]
[1770944595688,0.54532059,1937.2,1936.6,0.55294677]
[1770944597191,0.54532059,1937.2,1936.2,0.55294677]
[1770944598791,0.00621975,1937.2,1936.4,0.55294677]
[1770944599390,0.54532059,1937.2,1936.4,0.55294677]
[1770944600889,0.00621975,1937.2,1936.4,0.55294677]
[1770944601390,0.54532059,1937.2,1936.4,0.55294677]
[1770944603596,0.00621975,1937.2,1936.4,0.55294677]
[1770944603994,0.54532059,1937.2,1936.4,0.55294677]
[1770944604394,0.00621975,1937.2,1936.4,0.55294677]
[1770944604699,0.53910084,1937.4,1936.7,0.55294677]
[1770944604997,0.53910084,1937.4,1936.8,0.55294677]
[1770944605594,0.54557818,1937.4,1936.8,0.55915748]
[1770944607701,0.54557818,1937.4,1936.8,0.00621071]
[1770944608298,0.54557818,1937.4,1936.8,0.55915748]
[1770944609202,0.54557818,1937.4,1936.8,0.00621071]
[1770944610999,0.54557818,1937.4,1936.8,0.58293435]
[1770944615109,0.54557818,1937.4,1936.8,0.00621071]
[1770944618514,0.57571656,1937.2,1936.3,0.58065922]
[1770944618707,0.57571656,1937.2,1936.4,0.58065922]
[1770944619512,0.57571656,1937.2,1936.6,0.58065922]
[1770944619909,0.5821939,1937.4,1936.6,0.58065922]
[1770944620212,0.5821939,1937.4,1936.6,0.5844555]
[1770944622604,0.5821939,1937.4,1936.6,0.00379628]
[1770944622811,0.57571656,1937.2,1936.6,0.00379628]
[1770944623209,0.57571656,1937.2,1936.6,0.59428681]
[1770944623708,0.5821939,1937.4,1936.6,0.59428681]
[1770944631119,0.5821939,1937.4,1936.6,8.27956608]
[1770944631318,0.5821939,1937.4,1936.7,0.59049053]
[1770944633519,0.5821939,1937.4,1936.8,0.59049053]
[1770944634122,0.5821939,1937.4,1936.9,0.59049053]
[1770944634313,0.5821939,1937.4,1936.8,5.51549053]
[1770944634918,0.5821939,1937.4,1936.9,0.59049053]
[1770944638522,0.5821939,1937.4,1936.8,5.51549053]
[1770944640322,0.5821939,1937.4,1936.6,7.68907555]
[1770944640629,0.59450291,1937.2,1936.6,0.00379628]
[1770944640833,0.59450291,1937.2,1936.6,0.5503415]
[1770944641526,0.59450291,1937.2,1936.6,0.00379628]
[1770944642523,0.59450291,1937.0,1936.1,7.68527927]
[1770944642723,0.59450291,1937.0,1936.1,4.956]
[1770944643027,0.59450291,1936.8,1936.1,4.956]
[1770944643531,0.59450291,1936.8,1936.1,4.96205008]
[1770944644428,0.59450291,1936.8,1936.1,0.00605008]
[1770944644932,0.59450291,1936.6,1935.6,0.54654522]
[1770944645931,0.59450291,1936.6,1935.6,0.55307066]
[1770944647225,0.59450291,1936.9,1936.0,0.54654522]
[1770944647427,0.59450291,1936.9,1936.2,0.54654522]
[1770944647726,0.59450291,1937.3,1936.2,0.54654522]
[1770944647930,0.59450291,1937.3,1936.4,0.54654522]
[1770944649632,0.59450291,1937.3,1936.1,4.969]
[1770944649633,0.59450291,1937.3,1936.3,0.54654522]
[1770944650022,0.59450291,1937.3,1936.1,5.51554522]
[1770944650226,0.59450291,1937.3,1936.2,0.54654522]
[1770944659841,0.59450291,1937.1,1936.0,0.54654522]
[1770944660139,0.59450291,1937.1,1936.1,5.53654522]
[1770944660336,0.59450291,1937.1,1936.2,0.54654522]
[1770944667440,0.59450291,1937.3,1936.2,0.54654522]
[1770944667646,0.60098025,1937.4,1936.4,0.54654522]
[1770944668449,0.00647734,1937.4,1936.5,8.25903096]
[1770944668650,0.00647734,1937.4,1936.6,0.54654522]
[1770944668846,0.00647734,1937.4,1936.8,0.54654522]
[1770944670749,0.60256129,1937.4,1936.8,0.54654522]
[1770944671649,0.60256129,1937.4,1936.7,4.984]
[1770944672050,0.60256129,1937.4,1936.6,0.57727727]
[1770944686667,0.60256129,1937.4,1936.7,0.54685961]
[1770944688564,0.60256129,1937.4,1936.9,0.54863211]
[1770944689064,0.00647734,1937.4,1936.9,0.54863211]
[1770944689666,0.54817042,1937.6,1936.9,0.54863211]
[1770944689862,0.54817042,1937.9,1936.9,0.54863211]
[1770944690571,0.55435904,1937.9,1936.9,0.54863211]
[1770944691469,0.55435904,1937.9,1937.1,0.54861369]
[1770944691671,0.55435904,1937.9,1937.1,0.55402035]
[1770944692266,0.54817042,1938.6,1937.6,0.54878977]
[1770944692470,0.54817042,1938.6,1937.8,0.54878977]
[1770944692873,0.54817042,1938.6,1937.5,0.54878977]
[1770944693272,0.54817042,1938.4,1937.5,0.54878977]
[1770944693475,0.54817042,1938.2,1937.3,0.54878977]
[1770944696874,0.54817042,1938.2,1937.4,5.023]
[1770944697076,0.54817042,1938.2,1937.4,5.56675418]
[1770944699871,0.54817042,1938.2,1937.4,5.023]
[1770944700071,0.54817042,1938.2,1937.4,5.54868958]
[1770944700872,0.54817042,1938.2,1937.5,0.52527431]
[1770944701071,0.54817042,1938.2,1937.4,5.023]
[1770944701274,0.54817042,1938.2,1937.4,5.54827431]
[1770944701576,0.54817042,1938.2,1937.5,0.52527431]
[1770944701977,0.54817042,1938.2,1937.4,5.023]
[1770944702172,0.54817042,1938.2,1937.1,0.00540666]
[1770944702384,0.57886446,1938.1,1937.1,0.00540666]
[1770944702675,0.57886446,1938.0,1937.1,0.00540666]
[1770944702870,0.57886446,1937.9,1937.1,0.00540666]
[1770944705275,0.57886446,1937.7,1937.1,0.53109654]
[1770944706375,0.57886446,1937.9,1937.1,0.53109654]
[1770944708275,0.57886446,1938.3,1937.1,0.53109654]
[1770944709380,0.57886446,1937.9,1937.1,0.00540666]
[1770944709577,0.57886446,1937.7,1937.1,0.00540666]
[1770944709981,0.57886446,1937.7,1937.1,0.53026199]
[1770944710483,0.57886446,1938.0,1937.1,0.53026199]
[1770944717391,0.57886446,1937.8,1937.1,0.00540666]
[1770944718582,0.57886446,1937.6,1937.1,0.00540666]
[1770944718787,0.57886446,1937.6,1937.1,0.52882635]
[1770944720090,0.57886446,1937.8,1937.1,0.52882635]
[1770944720591,0.57886446,1938.2,1937.2,0.51739348]
[1770944720990,0.57886446,1938.3,1937.9,0.51739348]
[1770944722192,0.57886446,1938.3,1937.8,1.53492269]
[1770944722583,0.57886446,1938.3,1937.7,0.51147826]
[1770944723489,3.0793323,1938.6,1937.7,0.51147826]
[1770944723490,0.57886446,1938.5,1937.7,0.51147826]
[1770944724193,0.0043862,1938.6,1937.7,0.51147826]
[1770944724388,0.58325066,1938.6,1937.7,0.51147826]
[1770944725196,0.0043862,1938.6,1937.9,0.50965976]
[1770944725596,0.58325066,1938.6,1937.9,0.50965976]
[1770944725993,0.0043862,1938.6,1937.9,5.50465976]
[1770944726299,0.0043862,1938.6,1938.0,0.51856028]
[1770944726497,0.58325066,1938.6,1938.0,0.51856028]
[1770944729502,0.0043862,1938.6,1938.0,0.51856028]
[1770944730696,0.56305908,1938.6,1938.0,0.51856028]
[1770944733505,0.0043862,1938.6,1938.0,0.51856028]
[1770944733710,0.56095679,1938.8,1938.0,0.51856028]
[1770944734608,0.56702586,1938.8,1938.0,0.51856028]
[1770944737807,0.56702586,1938.8,1937.6,0.51692398]
[1770944738007,0.56702586,1938.8,1937.6,5.51592398]
[1770944738208,0.56702586,1938.8,1937.7,0.51692398]
[1770944739510,0.56095679,1938.6,1937.6,5.51592398]
[1770944739710,0.56095679,1938.6,1937.7,0.51692398]
[1770944744315,0.56095679,1938.6,1937.4,0.50077093]
[1770944744517,0.56095679,1938.4,1937.4,0.50077093]
[1770944745215,0.56095679,1938.4,1937.3,0.50077093]
[1770944745419,0.56095679,1938.2,1937.2,0.50077093]
[1770944745716,0.56095679,1938.2,1937.1,0.50617759]
[1770944748319,0.56095679,1938.2,1937.2,0.49104558]
[1770944748814,0.56095679,1938.6,1937.2,0.49104558]
[1770944749020,0.56095679,1938.6,1937.5,0.49104558]
[1770944752820,0.56095679,1938.6,1937.6,0.49287762]
[1770944755820,0.56095679,1938.6,1937.8,0.48404651]
[1770944758827,0.56095679,1938.7,1937.8,0.48404651]
[1770944759021,0.56095679,1938.7,1937.9,0.48493947]
[1770944775143,0.00606907,1938.8,1938.1,0.47793719]
[1770944775331,0.00606907,1938.8,1938.3,0.47793719]
[1770944775536,0.59773048,1938.8,1938.3,0.47793719]
[1770944775737,0.59166141,1939.3,1938.3,0.47793719]
[1770944776942,0.59802361,1939.3,1938.3,0.47793719]
[1770944777344,0.59802361,1939.3,1938.4,5.026]
[1770944777540,0.59802361,1939.3,1938.4,5.5028737]
[1770944778339,0.59802361,1939.3,1938.5,0.47256191]
[1770944778544,0.59802361,1939.3,1938.5,0.47890058]
[1770944783046,3.66660751,1939.9,1938.8,0.25811]
[1770944783245,0.59166141,1939.9,1939.1,0.49594408]
[1770944783547,0.59166141,1940.3,1939.3,0.49594408]
[1770944784146,0.59571021,1940.3,1939.3,0.49594408]
[1770944785248,0.0040488,1940.3,1939.3,8.20842982]